{"text_format":"1","workbook":"xlsx","n_sheets":2,"sheets":["g","CONV"],"not_rendered":{"charts":0,"images":2,"macros":0,"external_links":1,"defined_names":3,"comments":0,"pivot_tables":0},"unopened":[],"bounds":{"document_bytes":16777216,"sheet_cells":100000,"rows_first":2000,"rows_last":500,"rows_between":2000,"halvings":0,"cell_chars":16384,"cell_head_chars":4096},"cells_cut":0,"cells_raw":0,"read":"whole","date_system":"1900"}

{"sheet":"g","index":0,"n_rows":135,"n_cols":25,"rows_kept":135,"cut":false,"hidden":false,"merged":[[3,5,3,8],[6,3,6,5],[8,3,8,5],[10,3,10,5],[12,3,12,5]]}
[null,"A","C","D",null,"F","G",null,"I",null,null,null,"M",null,"O",null,"O",null,"O","O","O","O","O","O","O"]
[null,"sgs","sgs","sgs",null,"sgs",10,null,"sgs",null,null,null,"sgs",null,"sgs",null,"sgs",null,"sgs","sgs","sgs","sgs","sgs","sgs","sgs"]
[]
[null,null,null,null,null,"نقط الإمتحان"]
[null,null,"01731F",null,null,null,1,null,0,null,null,null,12,null,1066101010]
[]
[]
[]
[]
[]
[]
[]
[]
[]
[null,null,null,null,null,null,"#0011#",null,"#0012#",null,null,null,"#0018#",null,"#0019#",null,"#0024#",null,"#0034#"]
["رت","رقم الامتحان","رقم  التلميذ  ","إسم التلميذ  "," تاريخ الإزدياد","القسم","اللغة العربية",null,"اللغة الفرنسية",null,"الأمازيغية",null,"الاجتماعيات",null,"الرياضيات",null,"التربية الإسلامية",null,"النشاط العلمي","ترتيب حسب ر ت في القسم","القاعة","النوع","المرجع"]
[1,1,"N123321456","الاسم 1","03-02-2006",1,7,null,5.25,null,null,null,5.33,null,2.88,null,9,null,0,{"$f":"COUNTIF($F$17:F17,F17)","v":1},1,"أنثى","6APG-1 C"]
[2,5,"N123321457","الاسم 2","03-09-2007",1,7,null,3,null,null,null,5,null,3.88,null,8,null,9,{"$f":"COUNTIF($F$17:F18,F18)","v":2},1,"أنثى","6APG-1 C"]
[3,9,"N123321458","الاسم 3","30-12-2006",1,6,null,4.5,null,null,null,5.5,null,6.75,null,7.5,null,9,{"$f":"COUNTIF($F$17:F19,F19)","v":3},1,"ذكر","6APG-1 C"]
[4,13,"N123321459","الاسم 4","03-10-2007",1,4.5,null,1.5,null,null,null,3,null,3.38,null,6,null,7,{"$f":"COUNTIF($F$17:F20,F20)","v":4},1,"أنثى","6APG-1 C"]
[5,17,"N123321460","الاسم 5","23-01-2008",1,8,null,6,null,null,null,8,null,5.5,null,7.5,null,9.5,{"$f":"COUNTIF($F$17:F21,F21)","v":5},1,"ذكر","6APG-1 C"]
[6,21,"N123321461","الاسم 6","29-07-2007",1,4.5,null,4,null,null,null,4.66,null,3.5,null,8.5,null,9.5,{"$f":"COUNTIF($F$17:F22,F22)","v":6},1,"أنثى","6APG-1 C"]
[7,25,"N123321462","الاسم 7","18-12-2006",1,7.5,null,4,null,null,null,5.83,null,3.88,null,7,null,10,{"$f":"COUNTIF($F$17:F23,F23)","v":7},1,"ذكر","6APG-1 C"]
[8,29,"N123321463","الاسم 8","29-03-2004",1,5,null,3,null,null,null,4.5,null,3.88,null,6,null,9,{"$f":"COUNTIF($F$17:F24,F24)","v":8},1,"أنثى","6APG-1 C"]
[9,33,"N123321464","الاسم 9","10-07-2007",1,6.5,null,4.5,null,null,null,7,null,4,null,9,null,7,{"$f":"COUNTIF($F$17:F25,F25)","v":9},1,"ذكر","6APG-1 C"]
[10,37,"N123321465","الاسم 10","21-06-2007",1,5,null,5.5,null,null,null,7,null,6.25,null,7.5,null,9,{"$f":"COUNTIF($F$17:F26,F26)","v":10},1,"أنثى","6APG-1 C"]
[11,41,"N123321466","الاسم 11","24-10-2007",1,8.5,null,6.5,null,null,null,9.5,null,4.25,null,8,null,10,{"$f":"COUNTIF($F$17:F27,F27)","v":11},1,"ذكر","6APG-1 C"]
[12,45,"N123321467","الاسم 12","16-12-2007",1,4,null,3,null,null,null,6,null,4.63,null,6,null,7,{"$f":"COUNTIF($F$17:F28,F28)","v":12},1,"أنثى","6APG-1 C"]
[13,49,"N123321468","الاسم 13","05-11-2005",1,9.5,null,8.5,null,null,null,8.66,null,9.3800000000000008,null,8.5,null,10,{"$f":"COUNTIF($F$17:F29,F29)","v":13},1,"ذكر","6APG-1 C"]
[14,53,"N123321469","الاسم 14","20-01-2006",1,3.5,null,3,null,null,null,5.83,null,4.63,null,4.5,null,10,{"$f":"COUNTIF($F$17:F30,F30)","v":14},1,"أنثى","6APG-1 C"]
[15,57,"N123321470","الاسم 15","30-07-2007",1,5.5,null,5,null,null,null,6,null,5.75,null,7.5,null,8,{"$f":"COUNTIF($F$17:F31,F31)","v":15},1,"ذكر","6APG-1 C"]
[16,61,"N123321471","الاسم 16","11-08-2007",1,8,null,4.5,null,null,null,5,null,4.38,null,3.5,null,10,{"$f":"COUNTIF($F$17:F32,F32)","v":16},1,"أنثى","6APG-1 C"]
[17,65,"N123321472","الاسم 17","17-09-2007",1,8,null,3,null,null,null,6,null,5,null,5.5,null,10,{"$f":"COUNTIF($F$17:F33,F33)","v":17},1,"ذكر","6APG-1 C"]
[18,69,"N123321473","الاسم 18","10-02-2005",1,5.7,null,6.5,null,null,null,6,null,7.13,null,7,null,9,{"$f":"COUNTIF($F$17:F34,F34)","v":18},1,"أنثى","6APG-1 C"]
[19,73,"N123321474","الاسم 19","21-05-2007",1,7,null,3,null,null,null,5,null,2,null,7,null,10,{"$f":"COUNTIF($F$17:F35,F35)","v":19},1,"ذكر","6APG-1 C"]
[20,77,"N123321475","الاسم 20","11-06-2007",1,7.6,null,7.5,null,null,null,6,null,7.75,null,9,null,10,{"$f":"COUNTIF($F$17:F36,F36)","v":20},2,"أنثى","6APG-1 C"]
[21,81,"N123321476","الاسم 21","08-01-2007",1,8.8000000000000007,null,4.5999999999999996,null,null,null,5.66,null,6.38,null,5,null,10,{"$f":"COUNTIF($F$17:F37,F37)","v":21},2,"ذكر","6APG-1 C"]
[22,85,"N123321477","الاسم 22","27-02-2008",1,6.5,null,7.5,null,null,null,6,null,7.63,null,6.5,null,9.5,{"$f":"COUNTIF($F$17:F38,F38)","v":22},2,"أنثى","6APG-1 C"]
[23,89,"N123321478","الاسم 23","26-01-2007",1,8.5,null,6.5,null,null,null,6.5,null,8.25,null,9,null,9,{"$f":"COUNTIF($F$17:F39,F39)","v":23},2,"ذكر","6APG-1 C"]
[24,93,"N123321479","الاسم 24","23-09-2005",1,5.5,null,3,null,null,null,5,null,5,null,5,null,8,{"$f":"COUNTIF($F$17:F40,F40)","v":24},2,"أنثى","6APG-1 C"]
[25,97,"N123321480","الاسم 25","11-09-2007",1,7.8,null,7,null,null,null,9.5,null,9.3800000000000008,null,8,null,10,{"$f":"COUNTIF($F$17:F41,F41)","v":25},2,"ذكر","6APG-1 C"]
[26,101,"N123321481","الاسم 26","27-11-2007",1,8.6,null,6,null,null,null,5,null,5,null,10,null,9.5,{"$f":"COUNTIF($F$17:F42,F42)","v":26},2,"أنثى","6APG-1 C"]
[27,105,"N123321482","الاسم 27","17-08-2007",1,6.6,null,4,null,null,null,6.33,null,6.88,null,7,null,9,{"$f":"COUNTIF($F$17:F43,F43)","v":27},2,"ذكر","6APG-1 C"]
[28,109,"N123321483","الاسم 28","26-04-2007",1,7.8,null,5.5,null,null,null,5,null,5.75,null,7.5,null,7,{"$f":"COUNTIF($F$17:F44,F44)","v":28},2,"أنثى","6APG-1 C"]
[29,113,"N123321484","الاسم 29","21-04-2007",1,7.8,null,4.7,null,null,null,5.5,null,5.5,null,8,null,9.5,{"$f":"COUNTIF($F$17:F45,F45)","v":29},2,"ذكر","6APG-1 C"]
[30,117,"N123321485","الاسم 30","20-05-2008",1,5.5,null,4.75,null,null,null,5,null,4.13,null,8,null,9.5,{"$f":"COUNTIF($F$17:F46,F46)","v":30},2,"أنثى","6APG-1 C"]
[31,2,"N123321495","الاسم 40","06-07-2006",2,7.2,null,5.12,null,null,null,8.33,null,5.18,null,8.75,null,0,{"$f":"COUNTIF($F$17:F47,F47)","v":1},2,"ذكر","6APG-2 C"]
[32,6,"N123321496","الاسم 41","30-09-2005",2,5.2,null,5,null,null,null,7,null,5.56,null,7.5,null,10,{"$f":"COUNTIF($F$17:F48,F48)","v":2},2,"أنثى","6APG-2 C"]
[33,10,"N123321497","الاسم 42","22-04-2007",2,7.3,null,6.5,null,null,null,9.33,null,4.62,null,9.5,null,7.5,{"$f":"COUNTIF($F$17:F49,F49)","v":3},2,"ذكر","6APG-2 C"]
[34,14,"N123321498","الاسم 43","11-09-2007",2,6.7,null,7,null,null,null,9.67,null,5.37,null,9,null,10,{"$f":"COUNTIF($F$17:F50,F50)","v":4},2,"أنثى","6APG-2 C"]
[35,18,"N123321499","الاسم 44","31-10-2005",2,2.5,null,4,null,null,null,7,null,4.18,null,9.5,null,10,{"$f":"COUNTIF($F$17:F51,F51)","v":5},2,"ذكر","6APG-2 C"]
[36,22,"N123321500","الاسم 45","11-09-2008",2,6,null,5.5,null,null,null,9.33,null,4.43,null,9.5,null,9,{"$f":"COUNTIF($F$17:F52,F52)","v":6},2,"أنثى","6APG-2 C"]
[37,26,"N123321501","الاسم 46","10-06-2008",2,4,null,3,null,null,null,4,null,2.12,null,1,null,7,{"$f":"COUNTIF($F$17:F53,F53)","v":7},2,"ذكر","6APG-2 C"]
[38,30,"N123321502","الاسم 47","09-06-2008",2,4.5,null,5,null,null,null,6,null,2,null,2,null,8.5,{"$f":"COUNTIF($F$17:F54,F54)","v":8},2,"أنثى","6APG-2 C"]
[39,34,"N123321503","الاسم 48","01-08-2008",2,6,null,4,null,null,null,8.5,null,4.93,null,9.5,null,10,{"$f":"COUNTIF($F$17:F55,F55)","v":9},2,"ذكر","6APG-2 C"]
[40,38,"N123321504","الاسم 49","08-05-2008",2,8.5,null,8,null,null,null,9.33,null,5.18,null,9.5,null,9.5,{"$f":"COUNTIF($F$17:F56,F56)","v":10},2,"أنثى","6APG-2 C"]
[41,42,"N123321505","الاسم 50","24-03-2009",2,9,null,8,null,null,null,10,null,7.81,null,9.75,null,9.5,{"$f":"COUNTIF($F$17:F57,F57)","v":11},3,"ذكر","6APG-2 C"]
[42,46,"N123321506","الاسم 51","04-04-2008",2,6.5,null,5,null,null,null,8,null,6.31,null,8.5,null,10,{"$f":"COUNTIF($F$17:F58,F58)","v":12},3,"أنثى","6APG-2 C"]
[43,50,"N123321507","الاسم 52","08-06-2008",2,6.5,null,3,null,null,null,7,null,4,null,8.5,null,10,{"$f":"COUNTIF($F$17:F59,F59)","v":13},3,"ذكر","6APG-2 C"]
[44,54,"N123321508","الاسم 53","02-09-2008",2,9.5,null,8.5,null,null,null,9.33,null,9.3699999999999992,null,10,null,9.5,{"$f":"COUNTIF($F$17:F60,F60)","v":14},3,"أنثى","6APG-2 C"]
[45,58,"N123321509","الاسم 54","14-04-2008",2,9.5,null,8.5,null,null,null,10,null,7.83,null,10,null,9.5,{"$f":"COUNTIF($F$17:F61,F61)","v":15},3,"ذكر","6APG-2 C"]
[46,62,"N123321510","الاسم 55","14-07-2008",2,6.6,null,4,null,null,null,6.5,null,3,null,8.5,null,7,{"$f":"COUNTIF($F$17:F62,F62)","v":16},3,"أنثى","6APG-2 C"]
[47,66,"N123321511","الاسم 56","15-05-2008",2,8.8000000000000007,null,4.5,null,null,null,7.67,null,4.68,null,8.5,null,9,{"$f":"COUNTIF($F$17:F63,F63)","v":17},3,"ذكر","6APG-2 C"]
[48,70,"N123321512","الاسم 57","18-05-2008",2,7,null,3,null,null,null,7.67,null,4.12,null,7,null,8.5,{"$f":"COUNTIF($F$17:F64,F64)","v":18},3,"أنثى","6APG-2 C"]
[49,74,"N123321513","الاسم 58","06-05-2008",2,9.5,null,8.5,null,null,null,8.67,null,8.25,null,9.5,null,9.5,{"$f":"COUNTIF($F$17:F65,F65)","v":19},3,"ذكر","6APG-2 C"]
[50,78,"N123321514","الاسم 59","08-04-2008",2,9.4,null,9.75,null,null,null,10,null,10,null,10,null,9.5,{"$f":"COUNTIF($F$17:F66,F66)","v":20},3,"أنثى","6APG-2 C"]
[51,82,"N123321515","الاسم 60","06-11-2008",2,9.6,null,9.5,null,null,null,10,null,9.25,null,10,null,10,{"$f":"COUNTIF($F$17:F67,F67)","v":21},3,"ذكر","6APG-2 C"]
[52,86,"N123321516","الاسم 61","02-09-2008",2,10,null,8.3699999999999992,null,null,null,8.67,null,5.12,null,10,null,10,{"$f":"COUNTIF($F$17:F68,F68)","v":22},3,"أنثى","6APG-2 C"]
[53,90,"N123321517","الاسم 62","02-12-2008",2,8,null,5.5,null,null,null,8,null,4.12,null,8,null,9.5,{"$f":"COUNTIF($F$17:F69,F69)","v":23},3,"ذكر","6APG-2 C"]
[54,94,"N123321518","الاسم 63","08-05-2008",2,8.8000000000000007,null,5,null,null,null,7,null,4.5599999999999996,null,7,null,8,{"$f":"COUNTIF($F$17:F70,F70)","v":24},3,"أنثى","6APG-2 C"]
[55,98,"N123321519","الاسم 64","25-07-2008",2,6.4,null,5.68,null,null,null,6.66,null,4.5,null,6.5,null,8,{"$f":"COUNTIF($F$17:F71,F71)","v":25},3,"ذكر","6APG-2 C"]
[56,102,"N123321520","الاسم 65","10-12-2008",2,6.4,null,4,null,null,null,6.5,null,4.37,null,7,null,9,{"$f":"COUNTIF($F$17:F72,F72)","v":26},3,"أنثى","6APG-2 C"]
[57,106,"N123321521","الاسم 66","28-10-2008",2,6.4,null,6,null,null,null,6.5,null,3.5,null,7.5,null,9.5,{"$f":"COUNTIF($F$17:F73,F73)","v":27},3,"ذكر","6APG-2 C"]
[58,110,"N123321522","الاسم 67","02-12-2008",2,7.8,null,7,null,null,null,8.5,null,7.37,null,8.5,null,9.5,{"$f":"COUNTIF($F$17:F74,F74)","v":28},3,"أنثى","6APG-2 C"]
[59,114,"N123321523","الاسم 68","24-10-2008",2,8.6,null,9.6199999999999992,null,null,null,9.5,null,8.75,null,10,null,9.5,{"$f":"COUNTIF($F$17:F75,F75)","v":29},3,"ذكر","6APG-2 C"]
[60,118,"N123321524","الاسم 69","18-01-2009",2,7.2,null,4,null,null,null,5,null,6.37,null,6.5,null,8,{"$f":"COUNTIF($F$17:F76,F76)","v":30},3,"أنثى","6APG-2 C"]
[61,3,"N123321535","الاسم 80","15-12-2007",3,5.5,null,4.38,null,null,null,8,null,6.5,null,9,null,0,{"$f":"COUNTIF($F$17:F77,F77)","v":1},4,"ذكر","6APG-1 F"]
[62,7,"N123321536","الاسم 81","24-10-2007",3,3,null,3.75,null,null,null,6,null,6.13,null,7,null,7,{"$f":"COUNTIF($F$17:F78,F78)","v":2},4,"أنثى","6APG-1 F"]
[63,11,"N123321537","الاسم 82","07-04-2007",3,8.5,null,4.38,null,null,null,9.5,null,5.88,null,8.5,null,10,{"$f":"COUNTIF($F$17:F79,F79)","v":3},4,"ذكر","6APG-1 F"]
[64,15,"N123321538","الاسم 83","06-10-2007",3,5.6,null,3.25,null,null,null,7,null,5.63,null,7,null,9,{"$f":"COUNTIF($F$17:F80,F80)","v":4},4,"أنثى","6APG-1 F"]
[65,19,"N123321539","الاسم 84","22-09-2005",3,5.6,null,5.5,null,null,null,6,null,5.25,null,7,null,9,{"$f":"COUNTIF($F$17:F81,F81)","v":5},4,"ذكر","6APG-1 F"]
[66,23,"N123321540","الاسم 85","17-03-2009",3,8.1999999999999993,null,5.38,null,null,null,9.3000000000000007,null,5.87,null,9,null,8,{"$f":"COUNTIF($F$17:F82,F82)","v":6},4,"أنثى","6APG-1 F"]
[67,27,"N123321541","الاسم 86","20-10-2008",3,7,null,5.88,null,null,null,7,null,8.5,null,9,null,9.5,{"$f":"COUNTIF($F$17:F83,F83)","v":7},4,"ذكر","6APG-1 F"]
[68,31,"N123321542","الاسم 87","26-10-2008",3,9.4,null,9.3800000000000008,null,null,null,10,null,9.1300000000000008,null,8.5,null,9.5,{"$f":"COUNTIF($F$17:F84,F84)","v":8},4,"أنثى","6APG-1 F"]
[69,35,"N123321543","الاسم 88","16-04-2008",3,8.6999999999999993,null,9.1199999999999992,null,null,null,10,null,9.5,null,10,null,10,{"$f":"COUNTIF($F$17:F85,F85)","v":9},4,"ذكر","6APG-1 F"]
[70,39,"N123321544","الاسم 89","12-04-2008",3,9,null,7,null,null,null,9.5,null,9.25,null,10,null,10,{"$f":"COUNTIF($F$17:F86,F86)","v":10},4,"أنثى","6APG-1 F"]
[71,43,"N123321545","الاسم 90","23-12-2008",3,6.4,null,5.12,null,null,null,7,null,6.5,null,8.5,null,9,{"$f":"COUNTIF($F$17:F87,F87)","v":11},4,"ذكر","6APG-1 F"]
[72,47,"N123321546","الاسم 91","26-10-2008",3,9.4,null,9.25,null,null,null,10,null,10,null,10,null,10,{"$f":"COUNTIF($F$17:F88,F88)","v":12},4,"أنثى","6APG-1 F"]
[73,51,"N123321547","الاسم 92","18-09-2008",3,9.5,null,7,null,null,null,9.6,null,7.88,null,10,null,10,{"$f":"COUNTIF($F$17:F89,F89)","v":13},4,"ذكر","6APG-1 F"]
[74,55,"N123321548","الاسم 93","26-06-2008",3,7,null,5,null,null,null,9,null,7.75,null,9,null,9,{"$f":"COUNTIF($F$17:F90,F90)","v":14},4,"أنثى","6APG-1 F"]
[75,59,"N123321549","الاسم 94","26-08-2008",3,8,null,7.75,null,null,null,9,null,8.6300000000000008,null,10,null,10,{"$f":"COUNTIF($F$17:F91,F91)","v":15},4,"ذكر","6APG-1 F"]
[76,63,"N123321550","الاسم 95","31-03-2009",3,9.3000000000000007,null,9.5,null,null,null,10,null,10,null,10,null,10,{"$f":"COUNTIF($F$17:F92,F92)","v":16},4,"أنثى","6APG-1 F"]
[77,67,"N123321551","الاسم 96","04-03-2008",3,7.2,null,6.5,null,null,null,9.5,null,7.75,null,10,null,10,{"$f":"COUNTIF($F$17:F93,F93)","v":17},4,"ذكر","6APG-1 F"]
[78,71,"N123321552","الاسم 97","13-08-2008",3,8.3000000000000007,null,8,null,null,null,9,null,10,null,7.5,null,10,{"$f":"COUNTIF($F$17:F94,F94)","v":18},4,"أنثى","6APG-1 F"]
[79,75,"N123321553","الاسم 98","22-09-2008",3,9.4,null,9.8699999999999992,null,null,null,10,null,9.75,null,9.5,null,10,{"$f":"COUNTIF($F$17:F95,F95)","v":19},4,"ذكر","6APG-1 F"]
[80,79,"N123321554","الاسم 99","01-12-2008",3,7.2,null,6.12,null,null,null,8.6999999999999993,null,6,null,8.5,null,9.5,{"$f":"COUNTIF($F$17:F96,F96)","v":20},4,"أنثى","6APG-1 F"]
[81,83,"N123321555","الاسم 100","13-05-2008",3,6,null,2.62,null,null,null,6.5,null,4.37,null,5.5,null,10,{"$f":"COUNTIF($F$17:F97,F97)","v":21},5,"ذكر","6APG-1 F"]
[82,87,"N123321556","الاسم 101","20-08-2008",3,8.6,null,9.75,null,null,null,9,null,9.25,null,8,null,10,{"$f":"COUNTIF($F$17:F98,F98)","v":22},5,"أنثى","6APG-1 F"]
[83,91,"N123321557","الاسم 102","18-09-2008",3,6.5,null,5,null,null,null,7,null,6.5,null,6,null,10,{"$f":"COUNTIF($F$17:F99,F99)","v":23},5,"ذكر","6APG-1 F"]
[84,95,"N123321558","الاسم 103","18-08-2008",3,8.5,null,8.5,null,null,null,9,null,9.75,null,8,null,9,{"$f":"COUNTIF($F$17:F100,F100)","v":24},5,"أنثى","6APG-1 F"]
[85,99,"N123321559","الاسم 104","04-01-2009",3,7.8,null,8.35,null,null,null,8,null,9.3699999999999992,null,4.5,null,10,{"$f":"COUNTIF($F$17:F101,F101)","v":25},5,"ذكر","6APG-1 F"]
[86,103,"N123321560","الاسم 105","03-09-2008",3,8,null,7.62,null,null,null,9.5,null,9,null,8.5,null,10,{"$f":"COUNTIF($F$17:F102,F102)","v":26},5,"أنثى","6APG-1 F"]
[87,107,"N123321561","الاسم 106","25-05-2008",3,5.4,null,4.5,null,null,null,7,null,5,null,2.5,null,9,{"$f":"COUNTIF($F$17:F103,F103)","v":27},5,"ذكر","6APG-1 F"]
[88,111,"N123321562","الاسم 107","15-08-2008",3,7.5,null,4,null,null,null,7,null,8.1199999999999992,null,4.75,null,7.5,{"$f":"COUNTIF($F$17:F104,F104)","v":28},5,"أنثى","6APG-1 F"]
[89,115,"N123321563","الاسم 108","05-06-2008",3,8.1999999999999993,null,6.5,null,null,null,7,null,6.12,null,8,null,9.5,{"$f":"COUNTIF($F$17:F105,F105)","v":29},5,"ذكر","6APG-1 F"]
[90,119,"N123321564","الاسم 109","29-07-2007",3,9,null,9.5,null,null,null,8.5,null,8.6199999999999992,null,9,null,9.5,{"$f":"COUNTIF($F$17:F106,F106)","v":30},5,"أنثى","6APG-1 F"]
[91,4,"N123321573","الاسم 118","02-04-2008",4,6.5,null,5,null,null,null,7,null,6.5,null,6,null,0,{"$f":"COUNTIF($F$17:F107,F107)","v":1},5,"ذكر","6APG-1 F"]
[92,8,"N123321574","الاسم 119","22-09-2008",4,6.4,null,5.12,null,null,null,7,null,6.5,null,8.5,null,9,{"$f":"COUNTIF($F$17:F108,F108)","v":2},5,"أنثى","6APG-1 F"]
[93,12,"N123321575","الاسم 120","27-10-2008",4,6,null,2.62,null,null,null,6.5,null,4.37,null,5.5,null,10,{"$f":"COUNTIF($F$17:F109,F109)","v":3},5,"ذكر","6APG-1 F"]
[94,16,"N123321576","الاسم 121","08-10-2008",4,6,null,4,null,null,null,7,null,8.25,null,5,null,10,{"$f":"COUNTIF($F$17:F110,F110)","v":4},5,"أنثى","6APG-1 F"]
[95,20,"N123321577","الاسم 122","18-01-2009",4,5.6,null,3.25,null,null,null,7,null,5.63,null,7,null,9,{"$f":"COUNTIF($F$17:F111,F111)","v":5},5,"ذكر","6APG-1 F"]
[96,24,"N123321578","الاسم 123","18-08-2008",4,5.6,null,5.5,null,null,null,6,null,5.25,null,7,null,9,{"$f":"COUNTIF($F$17:F112,F112)","v":6},5,"أنثى","6APG-1 F"]
[97,28,"N123321579","الاسم 124","02-05-2008",4,5.5,null,4.38,null,null,null,8,null,6.5,null,9,null,8,{"$f":"COUNTIF($F$17:F113,F113)","v":7},5,"ذكر","6APG-1 F"]
[98,32,"N123321580","الاسم 125","23-09-2008",4,5.4,null,4.5,null,null,null,7,null,5,null,2.5,null,9,{"$f":"COUNTIF($F$17:F114,F114)","v":8},5,"أنثى","6APG-1 F"]
[99,36,"N123321581","الاسم 126","21-10-2008",4,3,null,3.75,null,null,null,6,null,6.13,null,7,null,7,{"$f":"COUNTIF($F$17:F115,F115)","v":9},5,"ذكر","6APG-1 F"]
[100,40,"N123321582","الاسم 127","02-02-2009",4,7,null,5.25,null,null,null,5.33,null,2.88,null,9,null,9,{"$f":"COUNTIF($F$17:F116,F116)","v":10},5,"أنثى","6APG-1 F"]
[101,44,"N123321583","الاسم 128","21-03-2009",4,7,null,3,null,null,null,5,null,3.88,null,8,null,9,{"$f":"COUNTIF($F$17:F117,F117)","v":11},6,"ذكر","6APG-1 F"]
[102,48,"N123321584","الاسم 129","23-10-2008",4,6,null,4.5,null,null,null,5.5,null,6.75,null,7.5,null,9,{"$f":"COUNTIF($F$17:F118,F118)","v":12},6,"أنثى","6APG-1 F"]
[103,52,"N123321585","الاسم 130","29-07-2007",4,4.5,null,1.5,null,null,null,3,null,3.38,null,6,null,7,{"$f":"COUNTIF($F$17:F119,F119)","v":13},6,"ذكر","6APG-1 F"]
[104,56,"N123321586","الاسم 131","08-07-2008",4,8,null,6,null,null,null,8,null,5.5,null,7.5,null,9.5,{"$f":"COUNTIF($F$17:F120,F120)","v":14},6,"أنثى","6APG-1 F"]
[105,60,"N123321587","الاسم 132","17-04-2007",4,4.5,null,4,null,null,null,4.66,null,3.5,null,8.5,null,9.5,{"$f":"COUNTIF($F$17:F121,F121)","v":15},6,"ذكر","6APG-1 F"]
[106,64,"N123321588","الاسم 133","24-04-2008",4,7.5,null,4,null,null,null,5.83,null,3.88,null,7,null,10,{"$f":"COUNTIF($F$17:F122,F122)","v":16},6,"أنثى","6APG-1 F"]
[107,68,"N123321589","الاسم 134","11-03-2009",4,5,null,3,null,null,null,4.5,null,3.88,null,6,null,9,{"$f":"COUNTIF($F$17:F123,F123)","v":17},6,"ذكر","6APG-1 F"]
[108,72,"N123321590","الاسم 135","22-03-2008",4,6.5,null,4.5,null,null,null,7,null,4,null,9,null,7,{"$f":"COUNTIF($F$17:F124,F124)","v":18},6,"أنثى","6APG-1 F"]
[109,76,"N123321591","الاسم 136","29-10-2007",4,5,null,5.5,null,null,null,7,null,6.25,null,7.5,null,9,{"$f":"COUNTIF($F$17:F125,F125)","v":19},6,"ذكر","6APG-1 F"]
[110,80,"N123321592","الاسم 137","13-01-2008",4,8.5,null,6.5,null,null,null,9.5,null,4.25,null,8,null,10,{"$f":"COUNTIF($F$17:F126,F126)","v":20},6,"أنثى","6APG-1 F"]
[111,84,"N123321593","الاسم 138","10-05-2008",4,4,null,3,null,null,null,6,null,4.63,null,6,null,7,{"$f":"COUNTIF($F$17:F127,F127)","v":21},6,"ذكر","6APG-1 F"]
[112,88,"N123321594","الاسم 139","04-11-2007",4,9.5,null,8.5,null,null,null,8.66,null,9.3800000000000008,null,8.5,null,10,{"$f":"COUNTIF($F$17:F128,F128)","v":22},6,"أنثى","6APG-1 F"]
[113,92,"N123321595","الاسم 140","28-02-2008",4,3.5,null,3,null,null,null,5.83,null,4.63,null,4.5,null,10,{"$f":"COUNTIF($F$17:F129,F129)","v":23},6,"ذكر","6APG-1 F"]
[114,96,"N123321596","الاسم 141","09-02-2009",4,5.5,null,5,null,null,null,6,null,5.75,null,7.5,null,8,{"$f":"COUNTIF($F$17:F130,F130)","v":24},6,"أنثى","6APG-1 F"]
[115,100,"N123321597","الاسم 142","03-12-2008",4,8,null,4.5,null,null,null,5,null,4.38,null,3.5,null,10,{"$f":"COUNTIF($F$17:F131,F131)","v":25},6,"ذكر","6APG-1 F"]
[116,104,"N123321598","الاسم 143","11-02-2009",4,8,null,3,null,null,null,6,null,5,null,5.5,null,10,{"$f":"COUNTIF($F$17:F132,F132)","v":26},6,"أنثى","6APG-1 F"]
[117,108,"N123321599","الاسم 144","14-01-2009",4,5.7,null,6.5,null,null,null,6,null,7.13,null,7,null,9,{"$f":"COUNTIF($F$17:F133,F133)","v":27},6,"ذكر","6APG-1 F"]
[118,112,"N123321600","الاسم 145","05-10-2008",4,7,null,3,null,null,null,5,null,2,null,7,null,10,{"$f":"COUNTIF($F$17:F134,F134)","v":28},6,"أنثى","6APG-1 F"]
[119,116,"N123321601","الاسم 146","15-12-2008",4,7.6,null,7.5,null,null,null,6,null,7.75,null,9,null,10,{"$f":"COUNTIF($F$17:F135,F135)","v":29},6,"ذكر","6APG-1 F"]

{"sheet":"CONV","index":1,"n_rows":314,"n_cols":20,"rows_kept":314,"cut":false,"hidden":false,"merged":[[4,6,4,10],[1,1,1,3],[1,4,1,7],[2,1,3,3],[2,4,2,7],[3,4,3,7],[5,1,5,2],[5,4,5,7],[6,7,6,8],[9,2,10,2],[9,3,9,4],[9,5,10,5],[9,6,10,6],[9,7,10,7],[24,2,24,3],[29,1,29,3],[29,4,29,7],[30,1,31,3],[30,4,30,7],[31,4,31,7],[32,6,32,10],[33,1,33,2],[33,4,33,7],[34,1,34,2],[34,4,34,5],[34,7,34,8],[52,4,52,7],[53,1,53,2],[53,4,53,5],[53,7,53,8],[43,2,43,3],[48,1,48,3],[48,4,48,7],[49,1,50,3],[49,4,49,7],[50,4,50,7],[81,2,81,3],[6,1,6,3],[70,6,70,10],[71,1,71,2],[71,4,71,7],[72,1,72,2],[72,4,72,5],[72,7,72,8],[62,2,62,3],[67,1,67,3],[67,4,67,7],[68,1,69,3],[68,4,68,7],[69,4,69,7],[51,6,51,10],[52,1,52,2]]}
[]
[null,"الموسم الدراسي 2022/2021",null,null,"الأكاديمية الجهوية للتربية والتكوين جهة الدارالبيضاء - سطات"]
[null,"استدعاء لإجتاز الإمتحان المحلي لنيل شهادة الدروس الابتدائية دورة يناير 2022",null,null,"مديرية الرحمة"]
[null,null,null,null,"م/م االهدى"]
[null,null,null,null,null,null,"تنهي الإدارة إلى علم التلميذ(ة) :",null,null,null,null,null,null,null,null,null,null,null,null,1]
[null,null,null,"المرجع:",null,null,null,null,null,"الإسم الكامل للمترشح :",null,null,null,null,null,null,null,null,null,2]
[null,"مركزية  م/م الهدى",null,null,"مركز الامتحان:",null,"القاعة:",null,null,"رقم الامتحان :",null,null,null,null,null,null,null,null,null,3]
[null,null,null,null,null,null,null,null,null,"        أن الإمتحان الموحد المحلي سيجرى يومي : الثلاثاء والأربعاء  28 و 29 يناير 2022 بم/م الهدى."]
[null,null,null,null,null,null,null,null,null,"وفق الجدولة التالية:",null,null,null,null,null,null,null,null,null,4]
[null,null,"المدة"]
[null,null,null,"إلى","من"]
[null,null,null,null,null,"مادة1"]
[null,null,null,null,null,"مادة2"]
[null,null,null,null,null,"مادة3"]
[null,null,null,null,null,"مادة4"]
[null,null,null,null,null,"مادة5"]
[null,null,null,null,null,"مادة6"]
[null,null,null,null,null,null,null,null,null,null,"على كل مترشح احترام التوجيهات التالية:",null,null,null,null,null,null,null,null,5]
[null,null,null,null,null,null,null,null,null,"يجب الحضور إلى مركز الإمتحان قبل الإختبار بنصف ساعة مصحوبا بالإستدعاء مع احترام مواقيت الإمتحان","•",null,null,null,null,null,null,null,null,6]
[null,null,null,null,null,null,"يجب التحلي بالإنضباط واحترام جميع الموظفين المشرفين على الإمتحان؛","•",null,"يمنع تغيير الأرقام والأماكن؛","•",null,null,null,null,null,null,null,null,7]
[null,null,null,null,null,null,null,null,null,"يمنع منعيا كليا ادخال الهاتف النقال إلى المؤسسة؛","•",null,null,null,null,null,null,null,null,8]
[null,null,null,null,null,null,null,null,null,"لن يسمح بمغادرة القاعة إلا بعد مرور نصف المدة الزمنية المخصصة للمادة وبعد تسليم ورقة التحرير والتوقيع على المحضر.","•",null,null,null,null,null,null,null,null,9]
[null,null,null,null,null,null,null,null,null,null,null,null,null,null,null,null,null,null,null,10]
[null,null,null,null,"توقيع رئيس مركز الإمتحان:",null,null,null,null,null,null,null,null,null,null,null,null,null,null,11]
[null,null,null,null,null,null,null,null,null,null,null,null,null,null,null,null,null,null,null,12]
[null,null,null,null,null,null,null,null,null,null,null,null,null,null,null,null,null,null,null,13]
[null,null,null,null,null,null,null,null,null,null,null,null,null,null,null,null,null,null,null,14]
[null,null,null,null,null,null,null,null,null,null,null,null,null,null,null,null,null,null,null,15]
[null,null,null,null,null,null,null,null,null,null,null,null,null,null,null,null,null,null,null,16]
[null,null,null,null,null,null,null,null,null,null,null,null,null,null,null,null,null,null,null,17]
[null,null,null,null,null,null,null,null,null,null,null,null,null,null,null,null,null,null,null,18]
[null,null,null,null,null,null,null,null,null,null,null,null,null,null,null,null,null,null,null,19]
[null,null,null,null,null,null,null,null,null,null,null,null,null,null,null,null,null,null,null,20]
[null,null,null,null,null,null,null,null,null,null,null,null,null,null,null,null,null,null,null,21]
[null,null,null,null,null,null,null,null,null,null,null,null,null,null,null,null,null,null,null,22]
[null,null,null,null,null,null,null,null,null,null,null,null,null,null,null,null,null,null,null,23]
[null,null,null,null,null,null,null,null,null,null,null,null,null,null,null,null,null,null,null,24]
[null,null,null,null,null,null,null,null,null,null,null,null,null,null,null,null,null,null,null,25]
[null,null,null,null,null,null,null,null,null,null,null,null,null,null,null,null,null,null,null,26]
[null,null,null,null,null,null,null,null,null,null,null,null,null,null,null,null,null,null,null,27]
[null,null,null,null,null,null,null,null,null,null,null,null,null,null,null,null,null,null,null,28]
[null,null,null,null,null,null,null,null,null,null,null,null,null,null,null,null,null,null,null,29]
[null,null,null,null,null,null,null,null,null,null,null,null,null,null,null,null,null,null,null,30]
[null,null,null,null,null,null,null,null,null,null,null,null,null,null,null,null,null,null,null,31]
[null,null,null,null,null,null,null,null,null,null,null,null,null,null,null,null,null,null,null,32]
[null,null,null,null,null,null,null,null,null,null,null,null,null,null,null,null,null,null,null,33]
[null,null,null,null,null,null,null,null,null,null,null,null,null,null,null,null,null,null,null,34]
[null,null,null,null,null,null,null,null,null,null,null,null,null,null,null,null,null,null,null,35]
[null,null,null,null,null,null,null,null,null,null,null,null,null,null,null,null,null,null,null,36]
[null,null,null,null,null,null,null,null,null,null,null,null,null,null,null,null,null,null,null,37]
[null,null,null,null,null,null,null,null,null,null,null,null,null,null,null,null,null,null,null,38]
[null,null,null,null,null,null,null,null,null,null,null,null,null,null,null,null,null,null,null,39]
[null,null,null,null,null,null,null,null,null,null,null,null,null,null,null,null,null,null,null,40]
[null,null,null,null,null,null,null,null,null,null,null,null,null,null,null,null,null,null,null,41]
[null,null,null,null,null,null,null,null,null,null,null,null,null,null,null,null,null,null,null,42]
[null,null,null,null,null,null,null,null,null,null,null,null,null,null,null,null,null,null,null,43]
[null,null,null,null,null,null,null,null,null,null,null,null,null,null,null,null,null,null,null,44]
[null,null,null,null,null,null,null,null,null,null,null,null,null,null,null,null,null,null,null,45]
[null,null,null,null,null,null,null,null,null,null,null,null,null,null,null,null,null,null,null,46]
[null,null,null,null,null,null,null,null,null,null,null,null,null,null,null,null,null,null,null,47]
[null,null,null,null,null,null,null,null,null,null,null,null,null,null,null,null,null,null,null,48]
[null,null,null,null,null,null,null,null,null,null,null,null,null,null,null,null,null,null,null,49]
[null,null,null,null,null,null,null,null,null,null,null,null,null,null,null,null,null,null,null,50]
[null,null,null,null,null,null,null,null,null,null,null,null,null,null,null,null,null,null,null,51]
[null,null,null,null,null,null,null,null,null,null,null,null,null,null,null,null,null,null,null,52]
[null,null,null,null,null,null,null,null,null,null,null,null,null,null,null,null,null,null,null,53]
[null,null,null,null,null,null,null,null,null,null,null,null,null,null,null,null,null,null,null,54]
[null,null,null,null,null,null,null,null,null,null,null,null,null,null,null,null,null,null,null,55]
[null,null,null,null,null,null,null,null,null,null,null,null,null,null,null,null,null,null,null,56]
[null,null,null,null,null,null,null,null,null,null,null,null,null,null,null,null,null,null,null,57]
[null,null,null,null,null,null,null,null,null,null,null,null,null,null,null,null,null,null,null,58]
[null,null,null,null,null,null,null,null,null,null,null,null,null,null,null,null,null,null,null,59]
[null,null,null,null,null,null,null,null,null,null,null,null,null,null,null,null,null,null,null,60]
[null,null,null,null,null,null,null,null,null,null,null,null,null,null,null,null,null,null,null,61]
[null,null,null,null,null,null,null,null,null,null,null,null,null,null,null,null,null,null,null,62]
[null,null,null,null,null,null,null,null,null,null,null,null,null,null,null,null,null,null,null,63]
[null,null,null,null,null,null,null,null,null,null,null,null,null,null,null,null,null,null,null,64]
[null,null,null,null,null,null,null,null,null,null,null,null,null,null,null,null,null,null,null,65]
[null,null,null,null,null,null,null,null,null,null,null,null,null,null,null,null,null,null,null,66]
[null,null,null,null,null,null,null,null,null,null,null,null,null,null,null,null,null,null,null,67]
[null,null,null,null,null,null,null,null,null,null,null,null,null,null,null,null,null,null,null,68]
[null,null,null,null,null,null,null,null,null,null,null,null,null,null,null,null,null,null,null,69]
[null,null,null,null,null,null,null,null,null,null,null,null,null,null,null,null,null,null,null,70]
[null,null,null,null,null,null,null,null,null,null,null,null,null,null,null,null,null,null,null,71]
[null,null,null,null,null,null,null,null,null,null,null,null,null,null,null,null,null,null,null,72]
[null,null,null,null,null,null,null,null,null,null,null,null,null,null,null,null,null,null,null,73]
[null,null,null,null,null,null,null,null,null,null,null,null,null,null,null,null,null,null,null,74]
[null,null,null,null,null,null,null,null,null,null,null,null,null,null,null,null,null,null,null,75]
[null,null,null,null,null,null,null,null,null,null,null,null,null,null,null,null,null,null,null,76]
[null,null,null,null,null,null,null,null,null,null,null,null,null,null,null,null,null,null,null,77]
[null,null,null,null,null,null,null,null,null,null,null,null,null,null,null,null,null,null,null,78]
[null,null,null,null,null,null,null,null,null,null,null,null,null,null,null,null,null,null,null,79]
[null,null,null,null,null,null,null,null,null,null,null,null,null,null,null,null,null,null,null,80]
[null,null,null,null,null,null,null,null,null,null,null,null,null,null,null,null,null,null,null,81]
[null,null,null,null,null,null,null,null,null,null,null,null,null,null,null,null,null,null,null,82]
[null,null,null,null,null,null,null,null,null,null,null,null,null,null,null,null,null,null,null,83]
[null,null,null,null,null,null,null,null,null,null,null,null,null,null,null,null,null,null,null,84]
[null,null,null,null,null,null,null,null,null,null,null,null,null,null,null,null,null,null,null,85]
[null,null,null,null,null,null,null,null,null,null,null,null,null,null,null,null,null,null,null,86]
[null,null,null,null,null,null,null,null,null,null,null,null,null,null,null,null,null,null,null,87]
[null,null,null,null,null,null,null,null,null,null,null,null,null,null,null,null,null,null,null,88]
[null,null,null,null,null,null,null,null,null,null,null,null,null,null,null,null,null,null,null,89]
[null,null,null,null,null,null,null,null,null,null,null,null,null,null,null,null,null,null,null,90]
[null,null,null,null,null,null,null,null,null,null,null,null,null,null,null,null,null,null,null,91]
[null,null,null,null,null,null,null,null,null,null,null,null,null,null,null,null,null,null,null,92]
[null,null,null,null,null,null,null,null,null,null,null,null,null,null,null,null,null,null,null,93]
[null,null,null,null,null,null,null,null,null,null,null,null,null,null,null,null,null,null,null,94]
[null,null,null,null,null,null,null,null,null,null,null,null,null,null,null,null,null,null,null,95]
[null,null,null,null,null,null,null,null,null,null,null,null,null,null,null,null,null,null,null,96]
[null,null,null,null,null,null,null,null,null,null,null,null,null,null,null,null,null,null,null,97]
[null,null,null,null,null,null,null,null,null,null,null,null,null,null,null,null,null,null,null,98]
[null,null,null,null,null,null,null,null,null,null,null,null,null,null,null,null,null,null,null,99]
[null,null,null,null,null,null,null,null,null,null,null,null,null,null,null,null,null,null,null,100]
[null,null,null,null,null,null,null,null,null,null,null,null,null,null,null,null,null,null,null,101]
[null,null,null,null,null,null,null,null,null,null,null,null,null,null,null,null,null,null,null,102]
[null,null,null,null,null,null,null,null,null,null,null,null,null,null,null,null,null,null,null,103]
[null,null,null,null,null,null,null,null,null,null,null,null,null,null,null,null,null,null,null,104]
[null,null,null,null,null,null,null,null,null,null,null,null,null,null,null,null,null,null,null,105]
[null,null,null,null,null,null,null,null,null,null,null,null,null,null,null,null,null,null,null,106]
[null,null,null,null,null,null,null,null,null,null,null,null,null,null,null,null,null,null,null,107]
[null,null,null,null,null,null,null,null,null,null,null,null,null,null,null,null,null,null,null,108]
[null,null,null,null,null,null,null,null,null,null,null,null,null,null,null,null,null,null,null,109]
[null,null,null,null,null,null,null,null,null,null,null,null,null,null,null,null,null,null,null,110]
[null,null,null,null,null,null,null,null,null,null,null,null,null,null,null,null,null,null,null,111]
[null,null,null,null,null,null,null,null,null,null,null,null,null,null,null,null,null,null,null,112]
[null,null,null,null,null,null,null,null,null,null,null,null,null,null,null,null,null,null,null,113]
[null,null,null,null,null,null,null,null,null,null,null,null,null,null,null,null,null,null,null,114]
[null,null,null,null,null,null,null,null,null,null,null,null,null,null,null,null,null,null,null,115]
[null,null,null,null,null,null,null,null,null,null,null,null,null,null,null,null,null,null,null,116]
[null,null,null,null,null,null,null,null,null,null,null,null,null,null,null,null,null,null,null,117]
[null,null,null,null,null,null,null,null,null,null,null,null,null,null,null,null,null,null,null,118]
[null,null,null,null,null,null,null,null,null,null,null,null,null,null,null,null,null,null,null,119]
[null,null,null,null,null,null,null,null,null,null,null,null,null,null,null,null,null,null,null,120]
[null,null,null,null,null,null,null,null,null,null,null,null,null,null,null,null,null,null,null,121]
[null,null,null,null,null,null,null,null,null,null,null,null,null,null,null,null,null,null,null,122]
[null,null,null,null,null,null,null,null,null,null,null,null,null,null,null,null,null,null,null,123]
[null,null,null,null,null,null,null,null,null,null,null,null,null,null,null,null,null,null,null,124]
[null,null,null,null,null,null,null,null,null,null,null,null,null,null,null,null,null,null,null,125]
[null,null,null,null,null,null,null,null,null,null,null,null,null,null,null,null,null,null,null,126]
[null,null,null,null,null,null,null,null,null,null,null,null,null,null,null,null,null,null,null,127]
[null,null,null,null,null,null,null,null,null,null,null,null,null,null,null,null,null,null,null,128]
[null,null,null,null,null,null,null,null,null,null,null,null,null,null,null,null,null,null,null,129]
[null,null,null,null,null,null,null,null,null,null,null,null,null,null,null,null,null,null,null,130]
[null,null,null,null,null,null,null,null,null,null,null,null,null,null,null,null,null,null,null,131]
[null,null,null,null,null,null,null,null,null,null,null,null,null,null,null,null,null,null,null,132]
[null,null,null,null,null,null,null,null,null,null,null,null,null,null,null,null,null,null,null,133]
[null,null,null,null,null,null,null,null,null,null,null,null,null,null,null,null,null,null,null,134]
[null,null,null,null,null,null,null,null,null,null,null,null,null,null,null,null,null,null,null,135]
[null,null,null,null,null,null,null,null,null,null,null,null,null,null,null,null,null,null,null,136]
[null,null,null,null,null,null,null,null,null,null,null,null,null,null,null,null,null,null,null,137]
[null,null,null,null,null,null,null,null,null,null,null,null,null,null,null,null,null,null,null,138]
[null,null,null,null,null,null,null,null,null,null,null,null,null,null,null,null,null,null,null,139]
[null,null,null,null,null,null,null,null,null,null,null,null,null,null,null,null,null,null,null,140]
[null,null,null,null,null,null,null,null,null,null,null,null,null,null,null,null,null,null,null,141]
[null,null,null,null,null,null,null,null,null,null,null,null,null,null,null,null,null,null,null,142]
[null,null,null,null,null,null,null,null,null,null,null,null,null,null,null,null,null,null,null,143]
[null,null,null,null,null,null,null,null,null,null,null,null,null,null,null,null,null,null,null,144]
[null,null,null,null,null,null,null,null,null,null,null,null,null,null,null,null,null,null,null,145]
[null,null,null,null,null,null,null,null,null,null,null,null,null,null,null,null,null,null,null,146]
[null,null,null,null,null,null,null,null,null,null,null,null,null,null,null,null,null,null,null,147]
[null,null,null,null,null,null,null,null,null,null,null,null,null,null,null,null,null,null,null,148]
[null,null,null,null,null,null,null,null,null,null,null,null,null,null,null,null,null,null,null,149]
[null,null,null,null,null,null,null,null,null,null,null,null,null,null,null,null,null,null,null,150]
[null,null,null,null,null,null,null,null,null,null,null,null,null,null,null,null,null,null,null,151]
[null,null,null,null,null,null,null,null,null,null,null,null,null,null,null,null,null,null,null,152]
[null,null,null,null,null,null,null,null,null,null,null,null,null,null,null,null,null,null,null,153]
[null,null,null,null,null,null,null,null,null,null,null,null,null,null,null,null,null,null,null,154]
[null,null,null,null,null,null,null,null,null,null,null,null,null,null,null,null,null,null,null,155]
[null,null,null,null,null,null,null,null,null,null,null,null,null,null,null,null,null,null,null,156]
[null,null,null,null,null,null,null,null,null,null,null,null,null,null,null,null,null,null,null,157]
[null,null,null,null,null,null,null,null,null,null,null,null,null,null,null,null,null,null,null,158]
[null,null,null,null,null,null,null,null,null,null,null,null,null,null,null,null,null,null,null,159]
[null,null,null,null,null,null,null,null,null,null,null,null,null,null,null,null,null,null,null,160]
[null,null,null,null,null,null,null,null,null,null,null,null,null,null,null,null,null,null,null,161]
[null,null,null,null,null,null,null,null,null,null,null,null,null,null,null,null,null,null,null,162]
[null,null,null,null,null,null,null,null,null,null,null,null,null,null,null,null,null,null,null,163]
[null,null,null,null,null,null,null,null,null,null,null,null,null,null,null,null,null,null,null,164]
[null,null,null,null,null,null,null,null,null,null,null,null,null,null,null,null,null,null,null,165]
[null,null,null,null,null,null,null,null,null,null,null,null,null,null,null,null,null,null,null,166]
[null,null,null,null,null,null,null,null,null,null,null,null,null,null,null,null,null,null,null,167]
[null,null,null,null,null,null,null,null,null,null,null,null,null,null,null,null,null,null,null,168]
[null,null,null,null,null,null,null,null,null,null,null,null,null,null,null,null,null,null,null,169]
[null,null,null,null,null,null,null,null,null,null,null,null,null,null,null,null,null,null,null,170]
[null,null,null,null,null,null,null,null,null,null,null,null,null,null,null,null,null,null,null,171]
[null,null,null,null,null,null,null,null,null,null,null,null,null,null,null,null,null,null,null,172]
[null,null,null,null,null,null,null,null,null,null,null,null,null,null,null,null,null,null,null,173]
[null,null,null,null,null,null,null,null,null,null,null,null,null,null,null,null,null,null,null,174]
[null,null,null,null,null,null,null,null,null,null,null,null,null,null,null,null,null,null,null,175]
[null,null,null,null,null,null,null,null,null,null,null,null,null,null,null,null,null,null,null,176]
[null,null,null,null,null,null,null,null,null,null,null,null,null,null,null,null,null,null,null,177]
[null,null,null,null,null,null,null,null,null,null,null,null,null,null,null,null,null,null,null,178]
[null,null,null,null,null,null,null,null,null,null,null,null,null,null,null,null,null,null,null,179]
[null,null,null,null,null,null,null,null,null,null,null,null,null,null,null,null,null,null,null,180]
[null,null,null,null,null,null,null,null,null,null,null,null,null,null,null,null,null,null,null,181]
[null,null,null,null,null,null,null,null,null,null,null,null,null,null,null,null,null,null,null,182]
[null,null,null,null,null,null,null,null,null,null,null,null,null,null,null,null,null,null,null,183]
[null,null,null,null,null,null,null,null,null,null,null,null,null,null,null,null,null,null,null,184]
[null,null,null,null,null,null,null,null,null,null,null,null,null,null,null,null,null,null,null,185]
[null,null,null,null,null,null,null,null,null,null,null,null,null,null,null,null,null,null,null,186]
[null,null,null,null,null,null,null,null,null,null,null,null,null,null,null,null,null,null,null,187]
[null,null,null,null,null,null,null,null,null,null,null,null,null,null,null,null,null,null,null,188]
[null,null,null,null,null,null,null,null,null,null,null,null,null,null,null,null,null,null,null,189]
[null,null,null,null,null,null,null,null,null,null,null,null,null,null,null,null,null,null,null,190]
[null,null,null,null,null,null,null,null,null,null,null,null,null,null,null,null,null,null,null,191]
[null,null,null,null,null,null,null,null,null,null,null,null,null,null,null,null,null,null,null,192]
[null,null,null,null,null,null,null,null,null,null,null,null,null,null,null,null,null,null,null,193]
[null,null,null,null,null,null,null,null,null,null,null,null,null,null,null,null,null,null,null,194]
[null,null,null,null,null,null,null,null,null,null,null,null,null,null,null,null,null,null,null,195]
[null,null,null,null,null,null,null,null,null,null,null,null,null,null,null,null,null,null,null,196]
[null,null,null,null,null,null,null,null,null,null,null,null,null,null,null,null,null,null,null,197]
[null,null,null,null,null,null,null,null,null,null,null,null,null,null,null,null,null,null,null,198]
[null,null,null,null,null,null,null,null,null,null,null,null,null,null,null,null,null,null,null,199]
[null,null,null,null,null,null,null,null,null,null,null,null,null,null,null,null,null,null,null,200]
[null,null,null,null,null,null,null,null,null,null,null,null,null,null,null,null,null,null,null,201]
[null,null,null,null,null,null,null,null,null,null,null,null,null,null,null,null,null,null,null,202]
[null,null,null,null,null,null,null,null,null,null,null,null,null,null,null,null,null,null,null,203]
[null,null,null,null,null,null,null,null,null,null,null,null,null,null,null,null,null,null,null,204]
[null,null,null,null,null,null,null,null,null,null,null,null,null,null,null,null,null,null,null,205]
[null,null,null,null,null,null,null,null,null,null,null,null,null,null,null,null,null,null,null,206]
[null,null,null,null,null,null,null,null,null,null,null,null,null,null,null,null,null,null,null,207]
[null,null,null,null,null,null,null,null,null,null,null,null,null,null,null,null,null,null,null,208]
[null,null,null,null,null,null,null,null,null,null,null,null,null,null,null,null,null,null,null,209]
[null,null,null,null,null,null,null,null,null,null,null,null,null,null,null,null,null,null,null,210]
[null,null,null,null,null,null,null,null,null,null,null,null,null,null,null,null,null,null,null,211]
[null,null,null,null,null,null,null,null,null,null,null,null,null,null,null,null,null,null,null,212]
[null,null,null,null,null,null,null,null,null,null,null,null,null,null,null,null,null,null,null,213]
[null,null,null,null,null,null,null,null,null,null,null,null,null,null,null,null,null,null,null,214]
[null,null,null,null,null,null,null,null,null,null,null,null,null,null,null,null,null,null,null,215]
[null,null,null,null,null,null,null,null,null,null,null,null,null,null,null,null,null,null,null,216]
[null,null,null,null,null,null,null,null,null,null,null,null,null,null,null,null,null,null,null,217]
[null,null,null,null,null,null,null,null,null,null,null,null,null,null,null,null,null,null,null,218]
[null,null,null,null,null,null,null,null,null,null,null,null,null,null,null,null,null,null,null,219]
[null,null,null,null,null,null,null,null,null,null,null,null,null,null,null,null,null,null,null,220]
[null,null,null,null,null,null,null,null,null,null,null,null,null,null,null,null,null,null,null,221]
[null,null,null,null,null,null,null,null,null,null,null,null,null,null,null,null,null,null,null,222]
[null,null,null,null,null,null,null,null,null,null,null,null,null,null,null,null,null,null,null,223]
[null,null,null,null,null,null,null,null,null,null,null,null,null,null,null,null,null,null,null,224]
[null,null,null,null,null,null,null,null,null,null,null,null,null,null,null,null,null,null,null,225]
[null,null,null,null,null,null,null,null,null,null,null,null,null,null,null,null,null,null,null,226]
[null,null,null,null,null,null,null,null,null,null,null,null,null,null,null,null,null,null,null,227]
[null,null,null,null,null,null,null,null,null,null,null,null,null,null,null,null,null,null,null,228]
[null,null,null,null,null,null,null,null,null,null,null,null,null,null,null,null,null,null,null,229]
[null,null,null,null,null,null,null,null,null,null,null,null,null,null,null,null,null,null,null,230]
[null,null,null,null,null,null,null,null,null,null,null,null,null,null,null,null,null,null,null,231]
[null,null,null,null,null,null,null,null,null,null,null,null,null,null,null,null,null,null,null,232]
[null,null,null,null,null,null,null,null,null,null,null,null,null,null,null,null,null,null,null,233]
[null,null,null,null,null,null,null,null,null,null,null,null,null,null,null,null,null,null,null,234]
[null,null,null,null,null,null,null,null,null,null,null,null,null,null,null,null,null,null,null,235]
[null,null,null,null,null,null,null,null,null,null,null,null,null,null,null,null,null,null,null,236]
[null,null,null,null,null,null,null,null,null,null,null,null,null,null,null,null,null,null,null,237]
[null,null,null,null,null,null,null,null,null,null,null,null,null,null,null,null,null,null,null,238]
[null,null,null,null,null,null,null,null,null,null,null,null,null,null,null,null,null,null,null,239]
[null,null,null,null,null,null,null,null,null,null,null,null,null,null,null,null,null,null,null,240]
[null,null,null,null,null,null,null,null,null,null,null,null,null,null,null,null,null,null,null,241]
[null,null,null,null,null,null,null,null,null,null,null,null,null,null,null,null,null,null,null,242]
[null,null,null,null,null,null,null,null,null,null,null,null,null,null,null,null,null,null,null,243]
[null,null,null,null,null,null,null,null,null,null,null,null,null,null,null,null,null,null,null,244]
[null,null,null,null,null,null,null,null,null,null,null,null,null,null,null,null,null,null,null,245]
[null,null,null,null,null,null,null,null,null,null,null,null,null,null,null,null,null,null,null,246]
[null,null,null,null,null,null,null,null,null,null,null,null,null,null,null,null,null,null,null,247]
[null,null,null,null,null,null,null,null,null,null,null,null,null,null,null,null,null,null,null,248]
[null,null,null,null,null,null,null,null,null,null,null,null,null,null,null,null,null,null,null,249]
[null,null,null,null,null,null,null,null,null,null,null,null,null,null,null,null,null,null,null,250]
[null,null,null,null,null,null,null,null,null,null,null,null,null,null,null,null,null,null,null,251]
[null,null,null,null,null,null,null,null,null,null,null,null,null,null,null,null,null,null,null,252]
[null,null,null,null,null,null,null,null,null,null,null,null,null,null,null,null,null,null,null,253]
[null,null,null,null,null,null,null,null,null,null,null,null,null,null,null,null,null,null,null,254]
[null,null,null,null,null,null,null,null,null,null,null,null,null,null,null,null,null,null,null,255]
[null,null,null,null,null,null,null,null,null,null,null,null,null,null,null,null,null,null,null,256]
[null,null,null,null,null,null,null,null,null,null,null,null,null,null,null,null,null,null,null,257]
[null,null,null,null,null,null,null,null,null,null,null,null,null,null,null,null,null,null,null,258]
[null,null,null,null,null,null,null,null,null,null,null,null,null,null,null,null,null,null,null,259]
[null,null,null,null,null,null,null,null,null,null,null,null,null,null,null,null,null,null,null,260]
[null,null,null,null,null,null,null,null,null,null,null,null,null,null,null,null,null,null,null,261]
[null,null,null,null,null,null,null,null,null,null,null,null,null,null,null,null,null,null,null,262]
[null,null,null,null,null,null,null,null,null,null,null,null,null,null,null,null,null,null,null,263]
[null,null,null,null,null,null,null,null,null,null,null,null,null,null,null,null,null,null,null,264]
[null,null,null,null,null,null,null,null,null,null,null,null,null,null,null,null,null,null,null,265]
[null,null,null,null,null,null,null,null,null,null,null,null,null,null,null,null,null,null,null,266]
[null,null,null,null,null,null,null,null,null,null,null,null,null,null,null,null,null,null,null,267]
[null,null,null,null,null,null,null,null,null,null,null,null,null,null,null,null,null,null,null,268]
[null,null,null,null,null,null,null,null,null,null,null,null,null,null,null,null,null,null,null,269]
[null,null,null,null,null,null,null,null,null,null,null,null,null,null,null,null,null,null,null,270]
[null,null,null,null,null,null,null,null,null,null,null,null,null,null,null,null,null,null,null,271]
[null,null,null,null,null,null,null,null,null,null,null,null,null,null,null,null,null,null,null,272]
[null,null,null,null,null,null,null,null,null,null,null,null,null,null,null,null,null,null,null,273]
[null,null,null,null,null,null,null,null,null,null,null,null,null,null,null,null,null,null,null,274]
[null,null,null,null,null,null,null,null,null,null,null,null,null,null,null,null,null,null,null,275]
[null,null,null,null,null,null,null,null,null,null,null,null,null,null,null,null,null,null,null,276]
[null,null,null,null,null,null,null,null,null,null,null,null,null,null,null,null,null,null,null,277]
[null,null,null,null,null,null,null,null,null,null,null,null,null,null,null,null,null,null,null,278]
[null,null,null,null,null,null,null,null,null,null,null,null,null,null,null,null,null,null,null,279]
[null,null,null,null,null,null,null,null,null,null,null,null,null,null,null,null,null,null,null,280]
[null,null,null,null,null,null,null,null,null,null,null,null,null,null,null,null,null,null,null,281]
[null,null,null,null,null,null,null,null,null,null,null,null,null,null,null,null,null,null,null,282]
[null,null,null,null,null,null,null,null,null,null,null,null,null,null,null,null,null,null,null,283]
[null,null,null,null,null,null,null,null,null,null,null,null,null,null,null,null,null,null,null,284]
[null,null,null,null,null,null,null,null,null,null,null,null,null,null,null,null,null,null,null,285]
[null,null,null,null,null,null,null,null,null,null,null,null,null,null,null,null,null,null,null,286]
[null,null,null,null,null,null,null,null,null,null,null,null,null,null,null,null,null,null,null,287]
[null,null,null,null,null,null,null,null,null,null,null,null,null,null,null,null,null,null,null,288]
[null,null,null,null,null,null,null,null,null,null,null,null,null,null,null,null,null,null,null,289]
[null,null,null,null,null,null,null,null,null,null,null,null,null,null,null,null,null,null,null,290]
[null,null,null,null,null,null,null,null,null,null,null,null,null,null,null,null,null,null,null,291]
[null,null,null,null,null,null,null,null,null,null,null,null,null,null,null,null,null,null,null,292]
[null,null,null,null,null,null,null,null,null,null,null,null,null,null,null,null,null,null,null,293]
[null,null,null,null,null,null,null,null,null,null,null,null,null,null,null,null,null,null,null,294]
[null,null,null,null,null,null,null,null,null,null,null,null,null,null,null,null,null,null,null,295]
[null,null,null,null,null,null,null,null,null,null,null,null,null,null,null,null,null,null,null,296]
[null,null,null,null,null,null,null,null,null,null,null,null,null,null,null,null,null,null,null,297]
[null,null,null,null,null,null,null,null,null,null,null,null,null,null,null,null,null,null,null,298]
[null,null,null,null,null,null,null,null,null,null,null,null,null,null,null,null,null,null,null,299]
[null,null,null,null,null,null,null,null,null,null,null,null,null,null,null,null,null,null,null,300]
[null,null,null,null,null,null,null,null,null,null,null,null,null,null,null,null,null,null,null,301]